[Event "76th GEO-ch Women 2019"]
[Site "Tbilisi"]
[Date "2019.03.22"]
[Round "4.4"]
[White "Mikadze, Miranda"]
[Black "Khomeriki, Nino"]
[Result "1/2-1/2"]
[ECO "C55"]
[WhiteElo "2266"]
[BlackElo "2347"]
[Annotator "NA"]
[PlyCount "153"]
[EventDate "2019.03.19"]
[EventType "swiss"]
[EventCountry "GEO"]
[SourceTitle "playchess.com"]
[Source "ChessBase"]
[SourceQuality "1"]
[TimeControl "40/5400+30:1800+30"]

1. e4 {[%emt 0:00:00]} e5 {[%emt 0:18:41]} 2. Nf3 {[%emt 0:00:00]} Nc6 {[%emt 0:00:06]} 3. Bc4 {[%emt 0:00:00]} Nf6 {[%emt 0:00:06]} 4. d3 {[%emt 0:00:00]} Be7 {[%emt 0:00:06]} 5. O-O {[%emt 0:00:00]} O-O {[%emt 0:00:04]} 6. Re1 {[%emt 0:00:00]} d6 {[%emt 0:00:06]} 7. a4 {[%emt 0:00:00]} Na5 {[%emt 0:00:04]} 8. Ba2 {[%emt 0:00:14] C55: Two Knights: 4 d3, 4 d4 exd4 5 e5 and Max Lange Attack} c5 {[%emt 0:00:05]} 9. c3 {[%emt 0:03:58]} Nc6 {[%emt 0:02:29]} 10. h3 {[%emt 0:03:13]} (10. Na3 a6 11. Bd2 Rb8 12. Nc2 Be6 13. Bxe6 fxe6 14. b4 b5 15. Qe2 Qd7 {½-½ (54) Duda,J (2707)-Naiditsch,A (2710) Linares 2017}) 10... Be6 {[%emt 0:03:07]} 11. Bxe6 {[%emt 0:17:06]} fxe6 {[%emt 0:02:22]} 12. Na3 {[%emt 0:00:11]} Nh5 {[%emt 0:18:34]} 13. Nc4 {[%emt 0:13:25]} Nf4 {[%emt 0:06:00]} 14. Be3 $146 {[%emt 0:26:12]} ({Predecessor:} 14. Bxf4 Rxf4 15. b4 cxb4 16. cxb4 Nxb4 {½-½ (32) Nichols,S (2240)-Legrand,S (2244) FICGS email 2010}) 14... Rc8 {[%emt 0:07:10]} 15. b3 {[%emt 0:05:10]} b6 {[%emt 0:17:21]} 16. d4 {[%emt 0:10:53]} exd4 {[%emt 0:00:26]} 17. cxd4 {[%emt 0:00:10]} d5 {[%emt 0:09:10]} 18. exd5 {[%emt 0:00:48]} exd5 {[%emt 0:00:50]} 19. Nce5 {[%emt 0:00:39]} Nxe5 {[%emt 0:00:10]} 20. Nxe5 {[%emt 0:00:28]} Bd6 {[%emt 0:01:43]} 21. Bxf4 {[%emt 0:04:03]} Rxf4 {[%emt 0:00:05]} 22. dxc5 {[%emt 0:00:06]} Bxc5 {[%emt 0:01:33]} 23. Nd3 {[%emt 0:00:04]} Rf5 {[%emt 0:00:52]} 24. Rc1 {[%emt 0:07:19]} Qf8 {[%emt 0:01:37]} 25. b4 {[%emt 0:01:14]} ({White should try} 25. Qe2 $14 Rd8 26. Rc2 (26. Nxc5 bxc5 27. Qe6+ Rf7 $14)) 25... Bd6 {[%emt 0:01:52]} 26. Qe2 $14 {[%emt 0:02:32]} Rd8 {[%emt 0:03:37]} 27. a5 {[%emt 0:03:33]} Bxb4 {[%emt 0:02:59]} 28. Qe6+ {[%emt 0:00:21]} Rf7 {[%emt 0:00:01]} 29. Nxb4 {[%emt 0:01:45]} Qxb4 {[%emt 0:00:01]} 30. Rc7 {[%emt 0:00:23]} Qf4 {[%emt 0:02:06]} 31. Rec1 {[%emt 0:01:09]} Qxf2+ {[%emt 0:00:45]} 32. Kh1 {[%emt 0:00:02]} Qf6 {[%emt 0:00:13]} 33. Qe1 {[%emt 0:00:50]} Rxc7 {[%emt 0:00:38]} 34. Rxc7 {[%emt 0:00:03]} bxa5 {[%emt 0:00:29]} 35. Rxa7 {[%emt 0:00:13]} d4 {[%emt 0:01:15]} 36. Rxa5 {[%emt 0:00:26]} d3 {[%emt 0:00:35]} 37. Ra2 {[%emt 0:00:48]} h6 {[%emt 0:00:32]} 38. Rd2 {[%emt 0:00:31]} Kh8 {[%emt 0:00:31]} 39. Qe3 {[%emt 0:00:44]} Qf5 {[%emt 0:00:30]} 40. Kg1 {[%emt 0:00:00]} Kh7 {[%emt 0:00:00]} 41. Rd1 {[%emt 0:02:40]} Rd5 {[%emt 0:03:46]} 42. Rd2 {[%emt 0:00:57]} h5 {[%emt 0:02:20]} 43. Rf2 {[%emt 0:11:10]} Qg6 {[%emt 0:06:02]} 44. Rd2 {[%emt 0:00:30]} h4 {[%emt 0:02:05]} 45. Qf4 {[%emt 0:00:52]} Qb6+ {[%emt 0:01:35]} 46. Kf1 {[%emt 0:08:28]} Qc5 {[%emt 0:05:29]} 47. g4 {[%emt 0:05:12]} Rd4 {[%emt 0:10:06]} 48. Qf2 {[%emt 0:01:01]} Kg8 {[%emt 0:01:51]} 49. Kg2 {[%emt 0:01:14]} Qc6+ {[%emt 0:00:25]} 50. Qf3 {[%emt 0:00:28]} Qd6 {[%emt 0:00:10]} 51. Qe3 {[%emt 0:00:23]} Kh7 {[%emt 0:00:14]} 52. Qf2 {[%emt 0:00:17]} Qd5+ {[%emt 0:00:25]} 53. Kh2 {[%emt 0:00:35]} Qe5+ {[%emt 0:00:19]} 54. Kg2 {[%emt 0:00:04]} Qd5+ {[%emt 0:01:14]} 55. Kh2 {[%emt 0:00:06]} Qg5 {[%emt 0:00:29]} 56. Kg2 {[%emt 0:01:54]} Rd6 {[%emt 0:00:16]} 57. Qe1 {[%emt 0:00:15]} Qd5+ {[%emt 0:02:10]} 58. Kh2 {[%emt 0:00:05]} Rh6 {[%emt 0:00:41]} 59. Qe3 {[%emt 0:00:29]} Rd6 {[%emt 0:00:16]} 60. Qe1 {[%emt 0:00:11]} Qg5 {[%emt 0:00:11]} 61. Qe4+ {[%emt 0:00:45]} Qg6 {[%emt 0:00:13]} 62. Qe1 {[%emt 0:00:19]} Qf6 {[%emt 0:00:41]} 63. Qe4+ {[%emt 0:01:08]} g6 {[%emt 0:00:05]} 64. Kg2 {[%emt 0:00:44]} Rd4 {[%emt 0:01:13]} 65. Qe8 {[%emt 0:01:39]} Rf4 {[%emt 0:00:50]} 66. Qd7+ {[%emt 0:00:10]} Kh6 {[%emt 0:00:23]} 67. Qxd3 {[%emt 0:00:12]} Qc6+ {[%emt 0:00:05]} 68. Qd5 {[%emt 0:01:31]} Qxd5+ {[%emt 0:01:02]} 69. Rxd5 {[%emt 0:00:03]} Ra4 {[%emt 0:00:04]} 70. Rb5 {[%emt 0:01:29]} Ra2+ {[%emt 0:00:24]} 71. Kg1 {[%emt 0:00:04]} Kg7 {[%emt 0:00:20]} 72. g5 {[%emt 0:01:55]} Ra3 {[%emt 0:00:13]} 73. Kh2 {[%emt 0:00:10]} Kf7 {[%emt 0:00:15]} 74. Rb4 {[%emt 0:00:06]} Ra2+ {[%emt 0:00:18]} 75. Kg1 {[%emt 0:00:20]} Ra5 {[%emt 0:00:20]} 76. Rxh4 {[%emt 0:00:09]} Rxg5+ {[%emt 0:00:03]} 77. Kf2 {[%emt 0:00:05]} 1/2-1/2

[Event "76th GEO-ch Women 2019"]
[Site "Tbilisi"]
[Date "2019.03.22"]
[Round "4.5"]
[White "Khukhashvili, Sopiko"]
[Black "Purtseladze, Maka"]
[Result "1/2-1/2"]
[ECO "C00"]
[WhiteElo "2342"]
[BlackElo "2282"]
[Annotator "NA"]
[PlyCount "117"]
[EventDate "2019.03.19"]
[EventType "swiss"]
[EventCountry "GEO"]
[SourceTitle "playchess.com"]
[Source "ChessBase"]
[SourceQuality "1"]
[TimeControl "40/5400+30:1800+30"]

{[%evp 8,87,25,18,25,20,29,32767,27,29,51,34,32,22,28,26,35,28,32,17,22,2,26,0,0,12,0,0,0,0,27,11,41,17,25,8,27,6,18,0,0,0,0,0,0,0,0,0,0,0,0,0,0,0,0,0,0,0,0,0,0,0,0,0,0,0,0,0,0,0,0,0,0,0,0,0,0,0,0,0,0,0]} 1. e4 {[%emt 0:00:00]} e6 {[%emt 0:08:40]} 2. f4 {[%emt 0:00:40]} d5 {[%emt 0:01:34]} 3. e5 {[%emt 0:00:05]} b6 {[%emt 0:08:04] C00: French: Unusual White 2nd moves} (3... c5 4. Nf3 Nc6 5. c3 Nh6 6. Na3 Nf5 7. Nc2 Be7 8. d4 Bd7 9. Bd3 g6 10. O-O cxd4 11. Bxf5 gxf5 12. Ncxd4 Qb6 13. Rf2 Na5 14. b3 Rc8 {0-1 (45) Izoria,Z (2603)-Smirnov,A (2569) chess.com INT 2019}) 4. c3 {[%emt 0:01:17]} Qd7 {[%emt 0:02:35]} 5. Nf3 {[%emt 0:00:23]} Ba6 {[%emt 0:00:15]} 6. Bxa6 {[%emt 0:00:22]} Nxa6 {[%emt 0:00:04]} 7. Qe2 $146 {[%emt 0:00:13]} ({Predecessor:} 7. a4 c5 8. d3 Nh6 9. Na3 Be7 10. O-O O-O 11. Nc2 {1-0 (25) Grbac,I (2128)-Grozdanic,V (2074) Croatia 2014}) 7... Nc5 {[%emt 0:05:09]} 8. Na3 {[%emt 0:06:28]} a6 {[%emt 0:01:03]} 9. O-O {[%emt 0:01:56]} Nh6 {[%emt 0:01:24]} 10. d3 {[%emt 0:00:26]} Be7 {[%emt 0:01:33]} 11. Be3 {[%emt 0:00:41]} Nf5 {[%emt 0:03:28]} 12. Bf2 {[%emt 0:00:03]} h5 {[%emt 0:04:10]} 13. Rfd1 {[%emt 0:04:19]} Qa4 {[%emt 0:15:36]} 14. g3 {[%emt 0:04:13]} g5 {[%emt 0:03:00]} 15. Nxg5 {[%emt 0:05:10]} Bxg5 {[%emt 0:00:20]} 16. fxg5 {[%emt 0:00:02]} Qg4 {[%emt 0:01:30]} 17. Qxg4 {[%emt 0:04:32]} hxg4 {[%emt 0:00:04]} 18. Nc2 {[%emt 0:01:53]} Rg8 {[%emt 0:04:17]} 19. Be3 {[%emt 0:05:12]} Nxe3 {[%emt 0:01:23]} 20. Nxe3 {[%emt 0:00:02]} Rxg5 {[%emt 0:00:04]} 21. d4 {[%emt 0:01:12]} Ne4 {[%emt 0:00:33]} 22. Rf1 {[%emt 0:01:00]} c5 {[%emt 0:17:01]} 23. Kg2 {[%emt 0:03:20]} cxd4 {[%emt 0:01:25]} 24. cxd4 {[%emt 0:00:02]} Rc8 {[%emt 0:00:04]} 25. Rac1 {[%emt 0:00:58]} Rxc1 {[%emt 0:00:06]} 26. Rxc1 {[%emt 0:00:01]} Kd7 {[%emt 0:00:05]} 27. Rf1 {[%emt 0:01:35]} Ke7 {[%emt 0:00:04]} 28. Rc1 {[%emt 0:05:11]} Kd7 {[%emt 0:00:04]} 29. a4 {[%emt 0:03:12]} a5 {[%emt 0:03:20]} 30. Rf1 {[%emt 0:01:29]} Ke7 {[%emt 0:00:04]} 31. b4 {[%emt 0:05:58]} axb4 {[%emt 0:05:43]} 32. Rb1 {[%emt 0:00:08]} Kd7 {[%emt 0:00:05]} 33. Rxb4 {[%emt 0:00:42]} Kc6 {[%emt 0:00:03]} 34. Rb1 {[%emt 0:00:27]} f6 {[%emt 0:00:41]} 35. exf6 {[%emt 0:01:38]} Nxf6 {[%emt 0:00:03]} 36. Rf1 {[%emt 0:00:29]} Rg6 {[%emt 0:05:06]} 37. Nc2 {[%emt 0:00:08]} Nd7 {[%emt 0:04:24]} 38. Ne3 {[%emt 0:11:41]} Kd6 {[%emt 0:04:09]} 39. a5 {[%emt 0:01:19]} bxa5 {[%emt 0:00:21]} 40. Ra1 {[%emt 0:00:00]} Nf6 {[%emt 0:00:00]} 41. Rxa5 {[%emt 0:00:06]} Rg8 {[%emt 0:04:58]} 42. Ra6+ {[%emt 0:00:22]} Ke7 {[%emt 0:00:05]} 43. Ra7+ {[%emt 0:00:03]} Kd6 {[%emt 0:01:52]} 44. Rf7 $11 {[%emt 0:01:38]} Rg6 {[%emt 0:04:18]} 45. Kg1 {[%emt 0:17:26]} Ne4 {[%emt 0:03:02]} 46. Ra7 {[%emt 0:01:10]} Rg8 {[%emt 0:00:53]} 47. Kg2 {[%emt 0:01:52]} Nc3 {[%emt 0:03:42]} 48. Ra6+ {[%emt 0:03:13]} Kd7 {[%emt 0:01:42]} 49. Rb6 {[%emt 0:00:45]} Ne4 {[%emt 0:00:55]} 50. Rb7+ {[%emt 0:01:59]} Kd6 {[%emt 0:00:57]} 51. Rh7 {[%emt 0:01:39]} Rg6 {[%emt 0:06:54]} 52. Rh8 {[%emt 0:02:57]} Rg7 {[%emt 0:01:41]} 53. Ra8 {[%emt 0:01:01]} Rg5 {[%emt 0:00:12]} 54. Ra5 {[%emt 0:03:21]} Rg8 {[%emt 0:00:18]} 55. Ra7 {[%emt 0:00:41]} Nc3 {[%emt 0:01:23]} 56. Ra3 {[%emt 0:02:07]} Ne4 {[%emt 0:00:44]} 57. Ra2 {[%emt 0:02:34]} Kc6 {[%emt 0:00:47]} 58. Ra1 {[%emt 0:04:59]} Kd6 {[%emt 0:00:21]} 59. Ra4 {[%emt 0:02:45] Ke5} 1/2-1/2

[Event "76th GEO-ch Women 2019"]
[Site "Tbilisi"]
[Date "2019.03.22"]
[Round "4.6"]
[White "Tsereteli, Tamar"]
[Black "Gvetadze, Sofio"]
[Result "0-1"]
[ECO "B07"]
[WhiteElo "2315"]
[BlackElo "2321"]
[Annotator "NA"]
[PlyCount "134"]
[EventDate "2019.03.19"]
[EventType "swiss"]
[EventCountry "GEO"]
[SourceTitle "playchess.com"]
[Source "ChessBase"]
[SourceQuality "1"]
[TimeControl "40/5400+30:1800+30"]

1. e4 {[%emt 0:00:00]} d6 {[%emt 0:00:00]} 2. d4 {[%emt 0:00:00]} Nf6 {[%emt 0:00:00]} 3. Nc3 {[%emt 0:00:07]} Nbd7 {[%emt 0:00:00]} 4. Bc4 {[%emt 0:01:32]} e5 {[%emt 0:00:04]} 5. Nf3 {[%emt 0:00:24]} Be7 {[%emt 0:00:07]} 6. O-O {[%emt 0:00:49]} O-O {[%emt 0:00:08]} 7. Qe2 {[%emt 0:02:03]} c6 {[%emt 0:00:15]} 8. a4 {[%emt 0:00:13]} a5 {[%emt 0:00:15]} 9. Rd1 {[%emt 0:04:44]} Qc7 {[%emt 0:00:52]} 10. h3 {[%emt 0:01:06]} exd4 {[%emt 0:02:38] C41: Philidor Defence} 11. Nxd4 {[%emt 0:00:49]} Nc5 {[%emt 0:00:18]} (11... Re8 12. Bf4 Bf8 13. Nf5 Ne5 14. Ng3 Be6 15. Bxe6 Rxe6 16. b3 Rae8 17. Rd4 Ng6 18. Qd2 Nxf4 19. Qxf4 {0-1 (53) Macieja,B (2629)-Cyborowski,L (2543) Warsaw 2003}) 12. Bf4 {[%emt 0:03:07]} Nfd7 {[%emt 0:12:24]} 13. Rd2 {[%emt 0:26:55]} Ne5 {[%emt 0:01:08]} 14. Ba2 $146 {[%emt 0:01:28]} ({Predecessor:} 14. Nb3 Qb6 15. Bxe5 dxe5 16. Nxc5 Bxc5 17. Nd1 Re8 18. b3 {½-½ (42) Wandzik,W (2360)-Gumularz,S (2239) Jastrzebia Gora 2015}) 14... Ng6 {[%emt 0:24:20]} (14... Be6 $5) 15. Be3 {[%emt 0:07:51]} Re8 {[%emt 0:02:06]} 16. Qf3 {[%emt 0:13:48]} Bf6 {[%emt 0:12:46]} 17. Rad1 {[%emt 0:03:58]} (17. Nf5 $16 Bxf5 18. exf5) 17... b6 {[%emt 0:17:49]} 18. g4 {[%emt 0:14:30]} (18. Nxc6 $14 Bxc3 19. bxc3) 18... Nh4 {[%emt 0:04:03]} (18... Be5 $15) 19. Qg3 $1 {[%emt 0:01:24]} Rxe4 {[%emt 0:01:54] [#]} (19... h6 $14) 20. Ndb5 $1 {[%emt 0:01:59]} cxb5 {[%emt 0:00:45]} 21. Bxc5 {[%emt 0:00:07] Pin} Bb7 {[%emt 0:09:13]} (21... Bxc3 22. Bxd6 Qd8 23. Bd5 (23. Qxc3 Bb7 $16)) 22. Bxd6 {[%emt 0:01:00]} ({Much weaker is} 22. Nxe4 $6 Bxe4 23. Bxd6 Qc8 $11 24. axb5 Nf3+ 25. Kf1 Nxd2+ 26. Rxd2 Qd7 $11) 22... Qc8 {[%emt 0:00:05]} 23. Bd5 {[%emt 0:03:24]} ({Much worse is} 23. Nxe4 $6) 23... Bxc3 $1 {[%emt 0:00:55]} 24. bxc3 {[%emt 0:01:09]} Bxd5 {[%emt 0:00:45]} 25. Rxd5 {[%emt 0:00:02]} Ng6 $1 {[%emt 0:00:15]} 26. Bc7 {[%emt 0:01:21]} Re8 {[%emt 0:00:18]} 27. Rxb5 {[%emt 0:00:45]} Qe6 {[%emt 0:00:12]} 28. Qd3 {[%emt 0:04:59]} Qc6 {[%emt 0:00:12]} 29. Bg3 $11 {[%emt 0:00:22]} ({Of course not} 29. Bxb6 Nf4 $17) 29... h6 {[%emt 0:00:16]} 30. c4 {[%emt 0:01:53]} Rac8 {[%emt 0:00:16]} 31. c5 {[%emt 0:00:43]} bxc5 {[%emt 0:00:24]} 32. c4 {[%emt 0:00:35]} Qf6 {[%emt 0:00:27]} 33. Qf5 {[%emt 0:01:06]} Qe7 {[%emt 0:00:36]} 34. Rxa5 {[%emt 0:00:36]} Qe2 {[%emt 0:02:43]} 35. Qd3 {[%emt 0:00:09]} Qa2 {[%emt 0:00:29]} 36. Ra7 {[%emt 0:00:16]} Ra8 {[%emt 0:00:35]} 37. Rc7 {[%emt 0:01:42]} Qxa4 {[%emt 0:00:52]} 38. Rxc5 {[%emt 0:00:22]} Nf8 {[%emt 0:03:44]} 39. Rc7 {[%emt 0:01:26]} Ne6 {[%emt 0:00:05]} 40. Qd7 {[%emt 0:00:00]} Nxc7 {[%emt 0:00:00]} 41. Qxa4 {[%emt 0:02:50]} Rxa4 {[%emt 0:01:48]} 42. Bxc7 {[%emt 0:00:01]} Rxc4 {[%emt 0:00:06]} 43. Rd8 {[%emt 0:00:06]} Rxd8 {[%emt 0:00:09]} 44. Bxd8 {[%emt 0:00:04]} f5 {[%emt 0:01:57]} 45. gxf5 {[%emt 0:00:40]} Kf7 {[%emt 0:00:44]} 46. Kg2 {[%emt 0:02:57]} Rf4 {[%emt 0:02:56]} 47. f6 {[%emt 0:06:40]} gxf6 {[%emt 0:00:18]} 48. Kg3 {[%emt 0:00:15]} Ra4 {[%emt 0:00:10]} 49. Bb6 {[%emt 0:00:30]} Kg6 {[%emt 0:00:45]} 50. Be3 {[%emt 0:00:08]} h5 {[%emt 0:00:12]} 51. Bc5 {[%emt 0:01:11]} Kf5 {[%emt 0:01:23]} 52. Be3 {[%emt 0:00:42]} Ke5 {[%emt 0:02:24]} 53. Bb6 {[%emt 0:00:19]} f5 {[%emt 0:01:10]} 54. Bc7+ {[%emt 0:00:13]} Kd5 {[%emt 0:06:07]} 55. Bd8 {[%emt 0:02:43]} Re4 {[%emt 0:03:33]} 56. Bb6 {[%emt 0:01:56]} f4+ {[%emt 0:05:58]} 57. Kf3 {[%emt 0:00:25]} Ke5 {[%emt 0:00:15]} 58. Bc7+ {[%emt 0:02:42]} Kf5 {[%emt 0:00:09]} 59. Bd6 {[%emt 0:01:38]} Rd4 {[%emt 0:00:10]} 60. Bc7 {[%emt 0:00:10]} Rd3+ {[%emt 0:00:22]} 61. Kg2 {[%emt 0:00:01]} Ke4 {[%emt 0:02:32]} 62. h4 {[%emt 0:02:13]} Rd7 {[%emt 0:00:42]} 63. f3+ {[%emt 0:00:53]} Ke3 {[%emt 0:00:11]} 64. Be5 {[%emt 0:01:14]} Rd8 {[%emt 0:01:46]} 65. Bf6 {[%emt 0:02:08]} Rd2+ {[%emt 0:00:25]} 66. Kh3 {[%emt 0:00:13]} Kxf3 {[%emt 0:00:18]} 67. Be5 {[%emt 0:00:19]} Rd1 {[%emt 0:00:28]} 0-1

[Event "76th GEO-ch Women 2019"]
[Site "Tbilisi"]
[Date "2019.03.23"]
[Round "5.1"]
[White "Gvetadze, Sofio"]
[Black "Melia, Salome"]
[Result "1-0"]
[ECO "B15"]
[WhiteElo "2321"]
[BlackElo "2385"]
[Annotator "NA"]
[PlyCount "85"]
[EventDate "2019.03.19"]
[EventType "swiss"]
[EventCountry "GEO"]
[SourceTitle "playchess.com"]
[Source "ChessBase"]
[SourceQuality "1"]
[TimeControl "40/5400+30:1800+30"]

{[%evp 8,54,33,3,16,8,20,-2,-16,-9,0,0,0,-18,0,0,12,0,0,0,0,0,22,0,71,64,78,26,95,43,113,125,102,58,32767,172,32767,189,32767,196,228,185,333,351,343,381,341,419,348]} 1. e4 {[%emt 0:00:00]} c6 {[%emt 0:00:00]} 2. d4 {[%emt 0:00:00]} d5 {[%emt 0:00:00]} 3. Nc3 {[%emt 0:00:00]} dxe4 {[%emt 0:00:00]} 4. Nxe4 {[%emt 0:00:00]} Nf6 {[%emt 0:00:00]} 5. Ng3 {[%emt 0:00:37]} g6 {[%emt 0:00:34]} 6. Nf3 {[%emt 0:00:07]} Bg7 {[%emt 0:00:04]} 7. h3 {[%emt 0:00:19] B15: Caro-Kann: 3 Nc3: 3...g6 and 3...dxe4 4 Nxe4 Nf6 5 Nxf6+ exf6} (7. Be2 O-O 8. O-O b6 9. Ne5 Bb7 10. Bf3 Qc8 11. c3 c5 12. dxc5 bxc5 13. Bxb7 Qxb7 14. Qb3 Qa6 15. Re1 {½-½ (58) Nemeth,M (2470)-Prohaszka,P (2610) Ajka 2018}) 7... O-O {[%emt 0:03:17]} 8. Bc4 {[%emt 0:01:50]} c5 {[%emt 0:01:57]} 9. O-O {[%emt 0:00:59]} cxd4 {[%emt 0:02:32]} 10. Nxd4 {[%emt 0:00:20]} Bd7 $146 {[%emt 0:07:02]} ({Predecessor:} 10... a6 11. Be3 Qc7 12. Qe2 Nbd7 13. a4 b6 14. Rfd1 {0-1 (76) Balasubramaniam,H (2219)-Kathmale,S (2323) Pardubice 2018}) 11. Re1 {[%emt 0:06:17]} Qc7 {[%emt 0:18:10]} 12. Qe2 {[%emt 0:02:56]} a6 {[%emt 0:04:36]} 13. Bb3 {[%emt 0:09:10]} Re8 {[%emt 0:08:54]} 14. Nf3 {[%emt 0:03:15]} Nc6 {[%emt 0:04:18]} 15. Qc4 {[%emt 0:04:38]} e6 {[%emt 0:00:13]} (15... b5 $11 16. Qc5 (16. Qxf7+ Kh8 $11) 16... Rac8) 16. Qh4 {[%emt 0:00:57]} h5 {[%emt 0:13:11]} 17. Bd2 {[%emt 0:23:43]} b5 {[%emt 0:07:37]} (17... Na5 $11 {keeps the balance.}) 18. Bc3 {[%emt 0:04:19]} Nh7 {[%emt 0:03:29]} ({Black should play} 18... Qd8 $14) 19. Bxg7 {[%emt 0:06:06]} Kxg7 {[%emt 0:00:03]} 20. Rad1 {[%emt 0:01:35]} ({White should play} 20. c4 $16) 20... Ra7 {[%emt 0:08:52]} 21. Ne4 {[%emt 0:03:48]} Bc8 {[%emt 0:01:22]} 22. Nd6 {[%emt 0:09:34]} Rd8 {[%emt 0:04:23] [#]} 23. Qg3 $1 {[%emt 0:00:06]} Kg8 {[%emt 0:03:48]} 24. c3 {[%emt 0:04:32]} Qe7 {[%emt 0:01:54]} (24... Qb8 $142 25. Ne5 Nxe5) 25. Nxc8 {[%emt 0:03:20]} Rxc8 {[%emt 0:00:12] [#]} 26. Bxe6 $1 {[%emt 0:00:14]} fxe6 {[%emt 0:02:13]} 27. Qxg6+ {[%emt 0:00:03] Double Attack} Kh8 $18 {[%emt 0:00:06]} 28. Rxe6 {[%emt 0:00:09]} Rg8 {[%emt 0:03:57]} 29. Qh6 {[%emt 0:10:15]} Qf7 {[%emt 0:00:40]} 30. Nh4 {[%emt 0:00:08]} Ne7 {[%emt 0:00:52]} 31. Rde1 {[%emt 0:00:43]} Rd7 {[%emt 0:00:40]} 32. Rxa6 {[%emt 0:02:40]} Rb7 {[%emt 0:00:30]} 33. Rd6 {[%emt 0:01:12]} Rc7 {[%emt 0:00:30]} 34. Rde6 {[%emt 0:00:36]} Rb7 {[%emt 0:00:08]} 35. Qe3 {[%emt 0:00:28]} Nd5 {[%emt 0:00:50]} 36. Qe5+ {[%emt 0:01:28]} Ndf6 {[%emt 0:00:01]} 37. Kh1 {[%emt 0:00:31]} Qg7 {[%emt 0:01:01]} 38. g3 {[%emt 0:00:26]} Qg5 {[%emt 0:00:30]} 39. Nf5 {[%emt 0:00:24]} Rd7 {[%emt 0:00:24]} 40. h4 {[%emt 0:00:00]} Qg4 {[%emt 0:00:00]} 41. Rxf6 {[%emt 0:06:32]} Qf3+ {[%emt 0:03:09]} 42. Kg1 {[%emt 0:00:38]} Rd5 {[%emt 0:01:52]} 43. Qe6 {[%emt 0:00:51]} 1-0

[Event "76th GEO-ch Women 2019"]
[Site "Tbilisi"]
[Date "2019.03.23"]
[Round "5.2"]
[White "Purtseladze, Maka"]
[Black "Tsereteli, Tamar"]
[Result "0-1"]
[ECO "E00"]
[WhiteElo "2282"]
[BlackElo "2315"]
[Annotator "NA"]
[PlyCount "120"]
[EventDate "2019.03.19"]
[EventType "swiss"]
[EventCountry "GEO"]
[SourceTitle "playchess.com"]
[Source "ChessBase"]
[SourceQuality "1"]
[TimeControl "40/5400+30:1800+30"]

1. d4 {[%emt 0:00:00]} Nf6 {[%emt 0:00:00]} 2. c4 {[%emt 0:00:00]} e6 {[%emt 0:00:00]} 3. Nc3 {[%emt 0:00:02]} d5 {[%emt 0:00:00]} 4. e3 {[%emt 0:07:29]} Be7 {[%emt 0:05:25] LiveBook: 31 Games} 5. Bd3 {[%emt 0:01:00]} O-O {[%emt 0:01:06]} 6. cxd5 {[%emt 0:04:28] D35: Queen's Gambit Declined: Exchange Variation} exd5 {[%emt 0:00:30]} 7. Nge2 {[%emt 0:00:04]} Re8 {[%emt 0:02:41]} (7... c5 8. O-O Nc6 9. a3 a5 10. b3 b6 11. Kh1 Re8 12. Bb5 Bb7 {0-1 (54) Boros,D (2429)-Wang,P (2380) Charlotte 2018}) 8. Qc2 $146 {[%emt 0:04:34]} ({Predecessor:} 8. O-O Nbd7 9. Nf4 c6 10. f3 Nf8 11. Bc2 Ne6 12. e4 Nxf4 13. Bxf4 {½-½ (42) Paquico Rodriguez,I (2137)-Merriman,J (2263) London 2017}) 8... c5 {[%emt 0:05:34]} 9. dxc5 {[%emt 0:04:06]} Nc6 {[%emt 0:03:15]} 10. a3 {[%emt 0:00:13]} Bxc5 {[%emt 0:07:20]} 11. b4 {[%emt 0:12:34]} Bb6 {[%emt 0:00:28]} 12. Na4 {[%emt 0:04:13]} ({White should try} 12. O-O $11) 12... Bc7 {[%emt 0:02:17]} 13. Bb2 {[%emt 0:01:21]} Ne4 {[%emt 0:11:27]} 14. Rd1 {[%emt 0:13:57]} Qg5 {[%emt 0:08:10]} 15. Bxe4 {[%emt 0:08:49]} dxe4 {[%emt 0:00:20]} 16. h4 {[%emt 0:02:58]} Qh5 {[%emt 0:08:17]} ({Don't blunder} 16... Qxg2 $2 17. Rg1 $18) 17. Nac3 {[%emt 0:05:56]} Bf5 {[%emt 0:08:34]} 18. Nd5 {[%emt 0:05:03]} Be5 {[%emt 0:02:49]} 19. Nef4 {[%emt 0:02:11]} (19. b5 $16 Bxb2 20. bxc6) 19... Qh6 {[%emt 0:01:10]} 20. b5 {[%emt 0:01:31]} Bxb2 {[%emt 0:01:22]} 21. Qxb2 {[%emt 0:02:24]} Ne5 {[%emt 0:03:00]} 22. Nc7 {[%emt 0:00:31]} Qf6 {[%emt 0:08:03]} ({Don't go for} 22... Nc4 $2 23. Qb4 $18) 23. Qb4 {[%emt 0:00:33]} Bg4 {[%emt 0:04:10]} 24. Nxe8 {[%emt 0:01:07]} Rxe8 {[%emt 0:00:07]} 25. Rc1 $2 {[%emt 0:13:36]} (25. Rd4 $18) 25... h6 $16 {[%emt 0:01:18]} (25... Nd3+ $1 $11 26. Nxd3 exd3) 26. h5 {[%emt 0:00:14]} (26. Qd4 $16) 26... a6 {[%emt 0:01:50]} 27. a4 {[%emt 0:03:04]} Qxf4 {[%emt 0:00:25]} 28. exf4 {[%emt 0:00:19]} Nd3+ {[%emt 0:00:01]} 29. Kd2 {[%emt 0:00:05]} Nxb4 {[%emt 0:00:05]} 30. Ke3 {[%emt 0:01:57]} Nd5+ {[%emt 0:00:44]} 31. Kd4 {[%emt 0:00:04]} Nxf4 {[%emt 0:00:12]} 32. Rb1 {[%emt 0:00:32]} Ne2+ {[%emt 0:03:01]} 33. Kc5 {[%emt 0:00:17]} Nc3 {[%emt 0:01:01]} 34. Ra1 {[%emt 0:01:12]} f6 {[%emt 0:03:38]} 35. Kb6 {[%emt 0:00:22]} axb5 {[%emt 0:00:33]} 36. axb5 {[%emt 0:00:37]} Re5 {[%emt 0:00:12]} 37. Ra5 {[%emt 0:00:24]} Be2 {[%emt 0:01:08]} 38. Re1 {[%emt 0:00:41]} Bd3 {[%emt 0:01:10]} 39. Rc1 {[%emt 0:00:25]} Rxb5+ {[%emt 0:01:05]} 40. Rxb5 {[%emt 0:00:00]} Nxb5 {[%emt 0:00:00]} 41. Kxb7 {[%emt 0:00:39]} Nd4 {[%emt 0:01:06]} 42. Kc7 {[%emt 0:01:50]} Ne2 {[%emt 0:02:06]} 43. Rh1 {[%emt 0:00:27]} Nf4 {[%emt 0:01:22]} 44. g3 {[%emt 0:00:05]} Ne6+ {[%emt 0:00:17]} 45. Kd6 {[%emt 0:00:08]} Ng5 {[%emt 0:00:32]} 46. Re1 {[%emt 0:07:00]} Nh3 {[%emt 0:00:28]} 47. Ra1 {[%emt 0:01:25]} Be2 {[%emt 0:07:29]} 48. Ra8+ {[%emt 0:03:06]} Kh7 {[%emt 0:00:20]} 49. Ra5 {[%emt 0:00:14]} Ng5 {[%emt 0:00:11]} 50. Kd5 {[%emt 0:01:44]} Bxh5 {[%emt 0:00:21]} 51. Kd4 {[%emt 0:00:02]} Bf3 {[%emt 0:00:11]} 52. Ke3 {[%emt 0:00:02]} Nf7 {[%emt 0:00:33]} 53. Kf4 {[%emt 0:00:17]} Kg6 {[%emt 0:00:29]} 54. Ra7 {[%emt 0:00:15]} Ne5 {[%emt 0:00:53]} 55. Rc7 {[%emt 0:00:18]} Nd3+ {[%emt 0:00:43]} 56. Ke3 {[%emt 0:00:05]} f5 {[%emt 0:00:43]} 57. Ra7 {[%emt 0:00:13]} Kf6 {[%emt 0:00:14]} 58. Ra5 {[%emt 0:01:21]} Kg5 {[%emt 0:00:17]} 59. Ra6 {[%emt 0:00:11]} h5 {[%emt 0:00:39]} 60. Ra7 {[%emt 0:00:13]} g6 {[%emt 0:00:10]} 0-1